fUST/lending_fUST_20250622
["ID","MTS","AMOUNT","RATE_DAILY","PERIOD"]
[366862524,1750524648524,-864.63,0.00022354,2]
[366862525,1750524648534,-864.63,0.00022354,2]
[366862526,1750524648543,-864.63,0.00022354,2]
[366862527,1750524648553,-864.63,0.00022354,2]
[366862528,1750524648563,-864.72,0.00022354,2]
[366862529,1750524648573,-646.21,0.00022354,2]
[366862530,1750524648583,-646.21,0.00022354,2]
[366862531,1750524648593,-646.21,0.00022354,2]
[366862532,1750524648603,-646.21,0.00022354,2]
[366862533,1750524648613,-646.23,0.00022354,2]
[366862534,1750524648622,-515.27,0.00022354,2]
[366862535,1750524648632,-515.27,0.00022354,2]
[366862536,1750524648642,-515.27,0.00022354,2]
[366862537,1750524648652,-515.27,0.00022354,2]
[366862538,1750524648661,-515.39,0.00022354,2]
[366862539,1750524648671,-460.0,0.00022355,2]
[366862540,1750524648681,-460.0,0.00022355,2]
[366862541,1750524648690,-151.0,0.000224,7]
[366862542,1750524648699,-1055.2134329,0.00022452,7]
[366862543,1750524648709,-500.0,0.00022464,8]
[366862544,1750524648719,-500.0,0.00022465,2]
[366862545,1750524648729,-500.0,0.00022521,2]
[366862546,1750524648739,-632.44017871,0.00022521,2]
[366862547,1750524648748,-731.90581439,0.00022521,2]
[366862548,1750524648758,-1000.0,0.00022521,2]
[366862549,1750524648768,-1000.0,0.00022521,2]
[366862550,1750524648778,-508.13161699,0.00022521,2]
[366862551,1750524648788,-506.51202744,0.00022521,2]
[366862552,1750524648798,-272.07536309,0.00022521,2]
[366862553,1750524648807,-500.0,0.00022521,2]
[366862554,1750524648817,-421.47928408,0.00022521,2]
[366862555,1750524648828,-1000.0,0.00022521,2]
[366862556,1750524648837,-534.13547628,0.00022521,2]
[366862557,1750524648847,-213.55395994,0.00022551,2]
[366862558,1750524648856,-230.10342898,0.00022551,2]
[366862559,1750524648865,-160.0,0.00022557,2]
[366862560,1750524648875,-160.0,0.00022557,2]
[366862561,1750524648885,-424.93363889,0.00022557,2]
[366862562,1750524648894,-160.0,0.00022557,2]
[366862563,1750524648904,-160.0,0.00022557,2]
[366862564,1750524648913,-846.23824438,0.00022557,2]
[366862565,1750524648924,-1055.2134329,0.0002259,7]
[366862566,1750524648934,-1055.2134329,0.00022728,7]
[366862567,1750524648944,-1055.2134329,0.00022866,8]
[366862568,1750524648954,-460.0,0.00022997,2]
[366862569,1750524648963,-460.0,0.00022997,2]
[366862570,1750524648973,-1055.2134329,0.00023003,8]
[366862571,1750524648983,-500.0,0.00023012,9]
[366862572,1750524648993,-500.0,0.00023013,2]
[366862573,1750524649002,-1500.0,0.00023068,2]
[366862574,1750524649011,-198.37650219,0.00023068,2]
[366862575,1750524649021,-1500.0,0.00023068,2]
[366862576,1750524649031,-1055.2134329,0.00023141,8]
[366862577,1750524649042,-500.0,0.00023205,2]
[366862578,1750524649052,-151.0,0.00023276,7]
[366862579,1750524649062,-1055.2134329,0.00023279,8]
[366862580,1750524649072,-160.0,0.00023286,2]
[366862581,1750524649081,-3724.24,0.000233,7]
[366862582,1750524649093,-3759.64,0.00023311,2]
[366862583,1750524649103,-460.0,0.00023313,2]
[366862584,1750524649113,-597.63,0.00023313,2]
[366862585,1750524649124,-304.74,0.00023341,3]
[366862586,1750524649134,-420.0,0.00023373,2]
[366862587,1750524649145,-1055.2134329,0.00023417,9]
[366862588,1750524649155,-1055.2134329,0.00023555,9]
[366862589,1750524649165,-500.0,0.0002356,10]
[366862590,1750524649177,-500.0,0.00023561,2]
[366862591,1750524649187,-308.09881753,0.00023561,2]
[366862592,1750524649200,-500.0,0.00023567,2]
[366862593,1750524649210,-500.0,0.00023567,2]
[366862594,1750524649219,-500.0,0.00023567,2]
[366862595,1750524649229,-223.86930729,0.00023567,2]
[366862596,1750524649239,-215.0738,0.00023592,2]
[366862597,1750524649248,-1295.07,0.000236,7]
[366862598,1750524649258,-1000.0,0.00023616,2]
[366862599,1750524649268,-2000.0,0.00023616,2]
[366862600,1750524649279,-497.22061474,0.0002365,2]
[366862601,1750524649289,-443.58519938,0.0002365,2]
[366862602,1750524649376,-261.05891665,0.00023656,2]
[366862603,1750524649397,-500.0,0.00023656,2]
[366862604,1750524649407,-500.0,0.00023657,2]
[366862605,1750524649417,-500.0,0.00023684,2]
[366862606,1750524649426,-151.0,0.00023685,2]
[366862607,1750524649436,-151.0,0.00023685,2]
[366862608,1750524649446,-151.000001,0.00023685,2]
[366862609,1750524649455,-151.0,0.00023685,2]
[366862610,1750524649465,-151.0,0.00023685,2]
[366862611,1750524649474,-151.0,0.00023685,2]
[366862612,1750524649484,-151.0,0.00023685,2]
[366862613,1750524649494,-151.0,0.00023685,2]
[366862614,1750524649504,-151.0,0.00023685,2]
[366862615,1750524649513,-151.0,0.00023685,2]
[366862616,1750524649523,-1055.2134329,0.00023693,9]
[366862617,1750524649533,-514.31995088,0.000237,2]
[366862618,1750524649543,-500.0,0.00023712,2]
[366862619,1750524649552,-151.0,0.00023712,2]
[366862620,1750524649561,-151.0,0.00023712,2]
[366862621,1750524649571,-245.0,0.00023712,2]
[366862622,1750524649580,-151.00533235,0.00023712,2]
[366862623,1750524649590,-198.0,0.00023712,2]
[366862624,1750524649599,-198.0,0.00023712,2]
[366862625,1750524649609,-460.0,0.00023726,2]
[366862626,1750524649618,-500.0,0.00023739,2]
[366862627,1750524649628,-198.0,0.0002374,2]
[366862628,1750524649638,-500.0,0.0002374,2]
[366862629,1750524649647,-406.36850021,0.0002374,2]
[366862630,1750524649656,-500.0,0.0002374,2]
[366862631,1750524649665,-500.0,0.0002374,2]
[366862632,1750524649675,-500.0,0.0002374,2]
[366862633,1750524649684,-600.0,0.0002374,2]
[366862634,1750524649694,-500.0,0.0002374,2]
[366862635,1750524649704,-500.0,0.00023767,2]
[366862636,1750524649714,-500.0,0.00023794,2]
[366862637,1750524649723,-347.0,0.0002381,2]
[366862638,1750524649732,-420.0,0.00023817,2]
[366862639,1750524649742,-500.0,0.00023821,2]
[366862640,1750524649752,-1055.2134329,0.00023831,10]
[366862641,1750524649761,-500.0,0.00023849,2]
[366862642,1750524649770,-500.0,0.00023876,2]
[366862643,1750524649779,-405.87798726,0.00023883,2]
[366862644,1750524649789,-500.0,0.00023883,2]
[366862645,1750524649799,-500.0,0.00023883,2]
[366862646,1750524649809,-500.0,0.00023883,2]
[366862647,1750524649819,-500.0,0.00023883,2]
[366862648,1750524649841,-500.0,0.00023883,2]
[366862649,1750524649851,-1055.2134329,0.00023969,10]
[366862650,1750524649861,-965.0,0.00023997,2]
[366862651,1750524649871,-2161.0,0.00023997,2]
[366862652,1750524649881,-654.0,0.00023997,2]
[366862653,1750524649891,-523.9660634,0.00024,3]
[366862654,1750524649901,-523.9660634,0.00024,3]
[366862655,1750524649911,-460.0,0.00024007,2]
[366862656,1750524649921,-1055.2134329,0.00024107,10]
[366862657,1750524649931,-500.0,0.00024108,11]
[366862658,1750524649941,-505.39640988,0.00024109,2]
[366862659,1750524649951,-1000.0,0.00024115,2]
[366862660,1750524649961,-518.991895,0.00024115,2]
[366862661,1750524649971,-347.0,0.00024137,2]
[366862662,1750524649981,-500.0,0.00024164,2]
[366862663,1750524649991,-51538.06,0.000242,2]
[366862664,1750524650002,-500.0,0.00024204,2]
[366862665,1750524650012,-1055.2134329,0.00024245,10]
[366862666,1750524650022,-1000.0,0.00024288,2]
[366862667,1750524650032,-1000.0,0.00024288,2]
[366862668,1750524650042,-503.2918241,0.00024288,2]
[366862669,1750524650051,-1200.0,0.00024288,2]
[366862670,1750524650061,-1000.0,0.00024288,2]
[366862671,1750524650071,-975.46,0.000243,2]
[366862672,1750524650081,-177.0,0.00024336,2]
[366862673,1750524650091,-1055.2134329,0.00024383,11]
[366862674,1750524650101,-151.0,0.00024399,7]
[366862675,1750524650111,-744.7492345,0.00024431,2]
[366862676,1750524650121,-1000.0,0.00024431,2]
[366862677,1750524650131,-1000.0,0.00024431,2]
[366862678,1750524650141,-1000.0,0.00024431,2]
[366862679,1750524650151,-825.95521417,0.00024431,2]
[366862680,1750524650161,-3724.24,0.000245,7]
[366862681,1750524650171,-1055.2134329,0.00024521,11]
[366862682,1750524650181,-460.0,0.00024596,2]
[366862683,1750524650190,-2000.0,0.000246,2]
[366862684,1750524650201,-460.0,0.00024654,2]
[366862685,1750524650211,-460.0,0.00024655,2]
[366862686,1750524650220,-347.0,0.00024656,2]
[366862687,1750524650230,-445.446918,0.00024656,4]
[366862688,1750524650240,-160.0,0.00024656,2]
[366862689,1750524650251,-460.0,0.00024656,2]
[366862690,1750524650261,-460.0,0.00024656,2]
[366862691,1750524650272,-171.0,0.00024657,3]
[366862692,1750524650283,-171.0,0.00024657,3]
[366862693,1750524650294,-151.0,0.00024657,3]
[366862694,1750524650303,-271.23252024,0.00024657,3]
[366862695,1750524650313,-151.0,0.00024657,3]
[366862696,1750524650323,-151.0,0.00024657,3]
[366862697,1750524650333,-151.0,0.00024657,3]
[366862698,1750524650343,-151.0,0.00024657,3]
[366862699,1750524650353,-151.0,0.00024657,3]
[366862700,1750524650363,-151.0,0.00024657,3]
[366862701,1750524650373,-151.0,0.00024657,3]
[366862702,1750524650383,-151.0,0.00024657,3]
[366862703,1750524650393,-151.0,0.00024657,3]
[366862704,1750524650403,-151.0,0.00024657,3]
[366862705,1750524650412,-151.0,0.00024657,3]
[366862706,1750524650422,-151.0,0.00024657,3]
[366862707,1750524650431,-151.0,0.00024657,3]
[366862708,1750524650444,-250.66227649,0.00024657,3]
[366862709,1750524650454,-471.61854637,0.00024657,2]
[366862710,1750524650464,-401.3106403,0.00024658,7]
[366862711,1750524650474,-1000.0,0.00024658,2]
[366862712,1750524650483,-1000.0,0.00024658,2]
[366862713,1750524650493,-1000.0,0.00024658,2]
[366862714,1750524650505,-1000.0,0.00024658,2]
[366862715,1750524650515,-1000.0,0.00024658,2]
[366862716,1750524650525,-1000.0,0.00024658,2]
[366862717,1750524650535,-1000.0,0.00024658,2]
[366862718,1750524650545,-1000.0,0.00024658,2]
[366862719,1750524650554,-1000.0,0.00024658,2]
[366862720,1750524650564,-1000.0,0.00024658,2]
[366862721,1750524650574,-1000.0,0.00024658,2]
[366862722,1750524650584,-1000.0,0.00024658,2]
[366862723,1750524650594,-1000.0,0.00024658,2]
[366862724,1750524650604,-1000.0,0.00024658,2]
[366862725,1750524650615,-1000.0,0.00024658,2]
[366862726,1750524650625,-1000.0,0.00024658,2]
[366862727,1750524650635,-1000.0,0.00024658,2]
[366862728,1750524650645,-1000.0,0.00024658,2]
[366862729,1750524650655,-1000.0,0.00024658,2]
[366862730,1750524650666,-633.0,0.00024658,2]
[366862731,1750524650676,-380.0,0.00024658,2]
[366862732,1750524650686,-472.01813702,0.00024658,2]
[366862733,1750524650697,-500.0,0.00024658,2]
[366862734,1750524650707,-1055.2134329,0.00024659,11]
[366862735,1750524650718,-1007.32710901,0.00024663,2]
[366862736,1750524650728,-539.798535,0.00024685,2]
[366862737,1750524650738,-500.0,0.00024707,9]
[366862738,1750524650748,-500.0,0.00024707,9]
[366862739,1750524650758,-1707.650139,0.0002472,5]
[366862740,1750524650768,-200.0,0.0002473,11]
[366862741,1750524650778,-3097.56423622,0.00024738,7]
[366862742,1750524650788,-25052.56603714,0.00024738,7]
[366862743,1750524650798,-1000.0,0.0002474,5]
[366862744,1750524650808,-168.0,0.00024754,2]
[366862745,1750524650817,-1000.0,0.0002476,5]
[366862746,1750524650827,-150.0,0.00024773,2]
[366862747,1750524650836,-150.0,0.00024773,2]
[366862748,1750524650846,-200.0,0.0002478,120]
[366862749,1750524650856,-1000.0,0.0002478,5]
[366862750,1750524650866,-1055.2134329,0.00024797,11]
[366862751,1750524650876,-200.0,0.000248,2]
[366862752,1750524650886,-200.0,0.000248,2]
[366862753,1750524650896,-200.0,0.000248,2]
[366862754,1750524650905,-200.0,0.000248,2]
[366862755,1750524650914,-200.0,0.000248,2]
[366862756,1750524650923,-200.0,0.000248,2]
[366862757,1750524650932,-314.0,0.000248,2]
[366862758,1750524650942,-407.77,0.000248,31]
[366862759,1750524650951,-407.77,0.000248,31]
[366862760,1750524650961,-407.77,0.000248,31]
[366862761,1750524650971,-407.77,0.000248,31]
[366862762,1750524650980,-407.77,0.000248,31]
[366862763,1750524650990,-407.77,0.000248,31]
[366862764,1750524651000,-407.77,0.000248,31]
[366862765,1750524651010,-407.77,0.000248,31]
[366862766,1750524651020,-407.77,0.000248,31]
[366862767,1750524651030,-407.77,0.000248,31]
[366862768,1750524651040,-407.77,0.000248,31]
[366862769,1750524651050,-407.77,0.000248,31]
[366862770,1750524651060,-407.77,0.000248,31]
[366862771,1750524651070,-407.77,0.000248,31]
[366862772,1750524651080,-407.77,0.000248,31]
[366862773,1750524651090,-407.77,0.000248,31]
[366862774,1750524651099,-1000.0,0.000248,5]
[366862775,1750524651110,-151.0,0.000248,7]
[366862776,1750524651120,-109997.956831,0.000248,2]
[366862777,1750524651130,-1000.0,0.0002482,5]
[366862778,1750524651140,-1500.0,0.00024836,2]
[366862779,1750524651150,-1500.0,0.00024836,2]
[366862780,1750524651160,-1500.0,0.00024836,2]
[366862781,1750524651170,-1800.0,0.00024836,2]
[366862782,1750524651180,-1000.0,0.0002484,5]
[366862783,1750524651190,-1000.0,0.0002486,5]
[366862784,1750524651201,-1000.0,0.0002488,5]
[366862785,1750524651212,-168.0,0.00024885,2]
[366862786,1750524651222,-10999.7956831,0.00024888,2]
[366862787,1750524651232,-10999.7956831,0.00024889,2]
[366862788,1750524651242,-87998.365465,0.0002489,2]
[366862789,1750524651252,-200.0,0.00024897,2]
[366862790,1750524651262,-30000.8151804,0.00024898,15]
[366862791,1750524651272,-63919.70994057,0.00024899,2]
[366862792,1750524651282,-151.0,0.000249,7]
[366862793,1750524651293,-151.0,0.000249,7]
[366862794,1750524651303,-151.0,0.000249,7]
[366862795,1750524651314,-151.0,0.000249,7]
[366862796,1750524651323,-151.0,0.000249,7]
[366862797,1750524651333,-151.0,0.000249,7]
[366862798,1750524651343,-222.846955,0.000249,7]
[366862799,1750524651352,-1000.0,0.000249,5]
[366862800,1750524651362,-290.808472,0.000249,7]
[366862801,1750524651371,-151.0,0.000249,7]
[366862802,1750524651381,-53267.81455817,0.000249,2]
[366862803,1750524651896,-166.49,0.00021907,10]
[366862804,1750524651906,-913.13,0.00021917,2]
[366862805,1750524651915,-913.13,0.00021917,2]
[366862806,1750524651924,-913.13,0.00021917,2]
[366862807,1750524651933,-913.18,0.00021917,2]
[366862808,1750524651942,-460.0,0.00021917,2]
[366862809,1750524651951,-595.45,0.00021917,2]
[366862810,1750524651960,-595.45,0.00021917,2]
[366862811,1750524651969,-460.0,0.00021917,2]
[366862812,1750524651978,-595.45,0.00021917,2]
[366862813,1750524651988,-460.0,0.00021917,2]
[366862814,1750524651997,-595.45,0.00021917,2]
[366862815,1750524652007,-310.39601104,0.00021917,2]
[366862817,1750524975040,163.713643,0.00013699,2]
[366862818,1750524976566,200.0,0.00022191,30]
[366862819,1750525003676,-150.0,0.00020187,2]
[366862820,1750525067576,-5000.0,0.00019986,2]
[366862821,1750525067600,-13.713643,0.00020187,2]
[366862822,1750525067623,-5272.286357,0.00020891,2]
[366862824,1750525625106,-300.0,0.00019999,2]
[366862825,1750525625128,-3157.25345029,0.0002,2]
[366862826,1750525632260,150.0,0.000189,2]
[366862827,1750525636129,-213.90356636,0.0002,2]
[366862828,1750525641092,-18771.33816635,0.0002,2]
[366862829,1750525641113,-359.609966,0.00020693,2]
[366862830,1750525641135,-179.117,0.00020763,2]
[366862831,1750525641155,-300.0,0.0002089,2]
[366862832,1750525641175,-4727.713643,0.00020891,2]
[366862833,1750525641196,-3038.71178033,0.00020891,2]
[366862834,1750525641217,-24900.0,0.00020898,2]
[366862835,1750525641238,-170.723818,0.00020911,2]
[366862836,1750525641258,-157.01939742,0.00021259,2]
[366862837,1750525641278,-641.32906066,0.00021367,2]
[366862838,1750525641301,-420.0,0.00021777,2]
[366862839,1750525641323,-609.48,0.00021907,3]
[366862840,1750525641343,-304.74,0.00021907,3]
[366862841,1750525641363,-166.49,0.00021907,10]
[366862842,1750525641384,-832.47,0.00021907,10]
[366862843,1750525641407,-525.86518807,0.00021916,2]
[366862844,1750525641429,-300.0,0.00021916,2]
[366862845,1750525641449,-160.0,0.00021916,2]
[366862846,1750525641472,-179.38130595,0.00021916,2]
[366862847,1750525641492,-342.11603977,0.00021917,2]
[366862848,1750525641512,-460.0,0.00021917,2]
[366862849,1750525641536,-460.0,0.00021917,2]
[366862850,1750525641557,-460.0,0.00021917,2]
[366862851,1750525641577,-460.0,0.00021917,2]
[366862852,1750525641597,-549.04169163,0.00021917,2]
[366862853,1750525641617,-471.2369041,0.00021917,2]
[366862854,1750525641640,-460.0,0.00021917,2]
[366862855,1750525641661,-460.0,0.00021917,2]
[366862856,1750525641682,-460.0,0.00021917,2]
[366862857,1750525641702,-470.41840086,0.00021917,2]
[366862858,1750525641723,-460.0,0.00021917,2]
[366862859,1750525641743,-456.27557176,0.00021917,2]
[366862860,1750525641763,-460.0,0.00021917,2]
[366862861,1750525641782,-424.7930537,0.00021917,2]
[366862862,1750525641802,-460.0,0.00021917,2]
[366862863,1750525641821,-460.0,0.00021917,2]
[366862864,1750525641842,-472.57383525,0.00021917,2]
[366862865,1750525641863,-375.0480701,0.00021917,2]
[366862866,1750525641886,-460.0,0.00021917,2]
[366862867,1750525641906,-460.0,0.00021917,2]
[366862868,1750525641927,-460.0,0.00021917,2]
[366862869,1750525641947,-460.0,0.00021917,2]
[366862870,1750525641968,-466.14763216,0.00021917,2]
[366862871,1750525641989,-460.0,0.00021917,2]
[366862872,1750525642009,-460.0,0.00021917,2]
[366862873,1750525642028,-460.0,0.00021917,2]
[366862874,1750525642048,-460.0,0.00021917,2]
[366862875,1750525642068,-460.0,0.00021917,2]
[366862876,1750525642088,-451.96176832,0.00021917,2]
[366862877,1750525642107,-276.38431434,0.00021917,2]
[366862878,1750525642128,-293.56144762,0.00021917,2]
[366862879,1750525642148,-460.0,0.00021917,2]
[366862880,1750525642168,-282.8494936,0.00021917,2]
[366862881,1750525642188,-460.0,0.00021917,2]
[366862882,1750525642209,-460.0,0.00021917,2]
[366862883,1750525642229,-425.66243965,0.00021917,2]
[366862884,1750525642250,-460.0,0.00021917,2]
[366862885,1750525642270,-461.8296285,0.00021917,2]
[366862886,1750525642291,-460.0,0.00021917,2]
[366862887,1750525642311,-439.25126957,0.00021917,2]
[366862888,1750525642331,-302.22259896,0.00021917,2]
[366862889,1750525642353,-470.20471438,0.00021917,2]
[366862890,1750525642375,-460.0,0.00021917,2]
[366862891,1750525642396,-460.0,0.00021917,2]
[366862892,1750525642417,-460.0,0.00021917,2]
[366862893,1750525642438,-160.78672767,0.00021917,2]
[366862894,1750525642459,-585.27915854,0.00021917,2]
[366862895,1750525642481,-460.0,0.00021917,2]
[366862896,1750525642501,-460.0,0.00021917,2]
[366862897,1750525642521,-460.0,0.00021917,2]
[366862898,1750525642543,-470.3832344,0.00021917,2]
[366862899,1750525642567,-200.0,0.00021917,2]
[366862900,1750525642587,-490.18754808,0.00021917,2]
[366862901,1750525642609,-460.0,0.00021917,2]
[366862902,1750525642630,-473.22194951,0.00021917,2]
[366862903,1750525642652,-460.0,0.00021917,2]
[366862904,1750525642673,-603.57044415,0.00021917,2]
[366862905,1750525642692,-438.22880669,0.00021917,2]
[366862906,1750525642712,-460.0,0.00021917,2]
[366862907,1750525642733,-460.0,0.00021917,2]
[366862908,1750525642754,-322.90722861,0.00021917,2]
[366862909,1750525642774,-460.0,0.00021917,2]
[366862910,1750525642795,-433.00955512,0.00021917,2]
[366862911,1750525642816,-443.54131262,0.00021917,2]
[366862912,1750525642838,-460.0,0.00021917,2]
[366862913,1750525642858,-460.0,0.00021917,2]
[366862914,1750525642882,-215.45485745,0.00021917,2]
[366862915,1750525642903,-468.45599741,0.00021917,2]
[366862916,1750525642924,-460.0,0.00021917,2]
[366862917,1750525642944,-460.0,0.00021917,2]
[366862918,1750525643060,-482.54909682,0.00021917,2]
[366862919,1750525643082,-460.0,0.00021917,2]
[366862920,1750525643103,-460.0,0.00021917,2]
[366862921,1750525643123,-330.17070415,0.00021917,2]
[366862922,1750525643144,-460.0,0.00021917,2]
[366862923,1750525643163,-460.0,0.00021917,2]
[366862924,1750525643183,-460.0,0.00021917,2]
[366862925,1750525643203,-468.12205346,0.00021917,2]
[366862926,1750525643224,-394.05817168,0.00021917,2]
[366862927,1750525643245,-478.22640978,0.00021917,2]
[366862928,1750525643265,-460.0,0.00021917,2]
[366862929,1750525643286,-460.0,0.00021917,2]
[366862930,1750525643306,-474.97254624,0.00021917,2]
[366862931,1750525643326,-460.0,0.00021917,2]
[366862932,1750525643347,-410.0,0.00021917,2]
[366862933,1750525643367,-278.37775246,0.00021917,2]
[366862934,1750525643388,-460.0,0.00021917,2]
[366862935,1750525643408,-460.0,0.00021917,2]
[366862936,1750525643428,-476.18343023,0.00021917,2]
[366862937,1750525643449,-472.21038219,0.00021917,2]
[366862938,1750525643470,-460.0,0.00021917,2]
[366862939,1750525643491,-180.46959415,0.00021917,2]
[366862940,1750525643512,-460.0,0.00021917,2]
[366862941,1750525643533,-460.0,0.00021917,2]
[366862942,1750525643563,-460.0,0.00021917,2]
[366862943,1750525643586,-460.0,0.00021917,2]
[366862944,1750525643607,-490.30149086,0.00021917,2]
[366862945,1750525643628,-460.0,0.00021917,2]
[366862946,1750525643651,-460.0,0.00021917,2]
[366862947,1750525643671,-463.27700176,0.00021917,2]
[366862948,1750525643693,-460.0,0.00021917,2]
[366862949,1750525643714,-460.0,0.00021917,2]
[366862950,1750525643735,-460.0,0.00021917,2]
[366862951,1750525643755,-460.0,0.00021917,2]
[366862952,1750525643776,-460.0,0.00021917,2]
[366862953,1750525643796,-460.0,0.00021917,2]
[366862954,1750525643817,-460.0,0.00021917,2]
[366862955,1750525643840,-460.0,0.00021917,2]
[366862956,1750525643860,-460.0,0.00021917,2]
[366862957,1750525643884,-473.90999318,0.00021917,2]
[366862958,1750525643905,-460.0,0.00021917,2]
[366862959,1750525643926,-460.0,0.00021917,2]
[366862960,1750525643947,-469.77239315,0.00021917,2]
[366862961,1750525643969,-460.0,0.00021917,2]
[366862962,1750525643991,-460.0,0.00021917,2]
[366862963,1750525644012,-460.0,0.00021917,2]
[366862964,1750525644033,-460.0,0.00021917,2]
[366862965,1750525644054,-460.0,0.00021917,2]
[366862966,1750525644075,-460.0,0.00021917,2]
[366862967,1750525644096,-460.0,0.00021917,2]
[366862968,1750525644116,-493.22300919,0.00021917,2]
[366862969,1750525644136,-469.44561112,0.00021917,2]
[366862970,1750525644158,-460.0,0.00021917,2]
[366862971,1750525644180,-460.0,0.00021917,2]
[366862972,1750525644202,-460.0,0.00021917,2]
[366862973,1750525644223,-460.0,0.00021917,2]
[366862974,1750525644243,-460.0,0.00021917,2]
[366862975,1750525644264,-460.0,0.00021917,2]
[366862976,1750525644285,-284.18120041,0.00021917,2]
[366862977,1750525770166,-1020.0396519,0.000219,6]
[366862978,1750525770189,-500.0,0.00021916,7]
[366862979,1750525770212,-300.0,0.00021916,2]
[366862980,1750525770236,-300.0,0.00021916,2]
[366862981,1750525770259,-242.90985613,0.00021916,2]
[366862982,1750525770280,-434.65801738,0.00021917,2]
[366862983,1750525770302,-460.0,0.00021917,2]
[366862984,1750525770322,-443.24900925,0.00021917,2]
[366862985,1750525770343,-460.0,0.00021917,2]
[366862986,1750525770365,-460.0,0.00021917,2]
[366862987,1750525770386,-460.0,0.00021917,2]
[366862988,1750525770406,-460.0,0.00021917,2]
[366862989,1750525770426,-460.0,0.00021917,2]
[366862990,1750525770447,-460.0,0.00021917,2]
[366862991,1750525770468,-460.0,0.00021917,2]
[366862992,1750525770489,-460.0,0.00021917,2]
[366862993,1750525770509,-460.0,0.00021917,2]
[366862994,1750525770529,-460.0,0.00021917,2]
[366862995,1750525770550,-460.0,0.00021917,2]
[366862996,1750525770570,-460.0,0.00021917,2]
[366862997,1750525770592,-460.0,0.00021917,2]
[366862998,1750525770612,-172.44,0.00021917,2]
[366862999,1750525770633,-460.0,0.00021917,2]
[366863000,1750525770654,-388.4657041,0.00021917,2]
[366863001,1750525770675,-399.56971787,0.00021917,2]
[366863002,1750525770695,-460.0,0.00021917,2]
[366863003,1750525770716,-429.85768802,0.00021917,2]
[366863004,1750525770736,-460.0,0.00021917,2]
[366863005,1750525770757,-460.0,0.00021917,2]
[366863006,1750525770777,-460.0,0.00021917,2]
[366863007,1750525770798,-468.86132422,0.00021917,2]
[366863008,1750525770818,-460.0,0.00021917,2]
[366863009,1750525770924,-460.0,0.00021917,2]
[366863010,1750525770948,-472.19893911,0.00021917,2]
[366863011,1750525770970,-460.0,0.00021917,2]
[366863012,1750525770992,-338.09934342,0.00021917,2]
[366863013,1750525771013,-490.24866616,0.00021917,2]
[366863014,1750525771034,-460.0,0.00021917,2]
[366863015,1750525771055,-460.0,0.00021917,2]
[366863016,1750525771076,-460.0,0.00021917,2]
[366863017,1750525771097,-460.0,0.00021917,2]
[366863018,1750525771119,-460.0,0.00021917,2]
[366863019,1750525771141,-476.80246605,0.00021917,2]
[366863020,1750525771162,-411.43066207,0.00021917,2]
[366863021,1750525771183,-460.0,0.00021917,2]
[366863022,1750525771204,-460.0,0.00021917,2]
[366863023,1750525771224,-468.66271634,0.00021917,2]
[366863024,1750525771246,-460.0,0.00021917,2]
[366863025,1750525771267,-429.58990734,0.00021917,2]